[Event "4NCL Div 1 2024-25"]
[Site "England"]
[Date "2024.11.23"]
[Round "1.8"]
[White "Toma, Katarzyna"]
[Black "Kalaiyalahan, Akshaya"]
[Result "1-0"]
[Annotator "RC"]
[ECO "B30"]
[WhiteElo "2184"]
[BlackElo "2130"]
[PlyCount "123"]
[EventDate "2024.11.23"]
[EventType "team-tourn"]
[EventCountry "ENG"]
[SourceTitle "playchess.com"]
[Source "ChessBase"]
[SourceQuality "1"]
[TimeControl "40/6000+30:3000+30"]

1. e4 {[%emt 0:10:04]} c5 {[%emt 0:10:04]} 2. Nc3 {[%emt 0:00:09]} Nc6 {[%emt 0:00:26]} 3. Bb5 {[%emt 0:00:13]} Nd4 {[%emt 0:00:24]} 4. Nf3 {[%emt 0:00:11]} a6 {[%emt 0:01:26]} 5. Bd3 {[%emt 0:00:17]} e6 {[%emt 0:01:42]} 6. O-O {[%emt 0:02:16]} Ne7 {[%emt 0:04:30]} 7. b3 {[%emt 0:05:14]} Nec6 {[%emt 0:00:42]} 8. Bb2 {[%emt 0:09:44]} Be7 {[%emt 0:08:42]} 9. Nxd4 cxd4 {[%emt 0:07:23]} 10. Ne2 {[%emt 0:08:44]} d5 {[%emt 0:05:24]} 11. Re1 {[%emt 0:08:22]} dxe4 12. Bxe4 {[%emt 0:00:30]} Bf6 13. Ng3 {[%emt 0:00:30]} O-O 14. Nh5 {[%emt 0:00:30]} Bg5 15. c3 {[%emt 0:00:30]} g6 16. Ng3 {[%emt 0:00:30]} Ne7 17. Qf3 {[%emt 0:00:30]} Rb8 18. Ne2 {[%emt 0:00:30]} dxc3 19. dxc3 {[%emt 0:00:30]} e5 20. Rad1 {[%emt 0:00:30]} Qa5 21. c4 {[%emt 0:00:30]} f5 22. Bc3 {[%emt 0:00:30]} Qc7 23. Bd5+ {[%emt 0:00:30]} Kg7 24. Nf4 {[%emt 0:00:30]} Bf6 25. Qe3 {[%emt 0:00:30]} e4 26. Bxf6+ {[%emt 0:00:30]} Rxf6 27. f3 {[%emt 0:00:30]} Nc6 28. Rf1 {[%emt 0:00:30]} exf3 29. Qxf3 {[%emt 0:00:30]} Ne5 30. Qg3 {[%emt 0:00:30]} Qb6+ 31. Kh1 {[%emt 0:00:30]} Nf7 32. Rde1 {[%emt 0:00:30]} Qd6 33. h3 {[%emt 0:00:30]} Nh6 34. Re8 {[%emt 0:00:30]} Nf7 35. Nh5+ {[%emt 0:00:30]} Kh6 36. Qe3+ {[%emt 0:00:30]} Kxh5 37. Bf3+ {[%emt 0:00:30]} Kh4 38. Be2 {[%emt 0:00:30]} f4 39. Re4 {[%emt 0:00:30]} Kg5 40. Rexf4 {[%emt 0:00:30]} Rxf4 41. Rxf4 {[%emt 0:50:30]} Qxf4 42. h4+ {[%emt 0:00:30]} Kf5 43. g4+ {[%emt 0:00:30]} Qxg4 44. Bxg4+ {[%emt 0:00:30]} Kxg4 45. Qe4+ {[%emt 0:00:30]} Kg3 46. Qg2+ {[%emt 0:00:30]} Kxh4 47. Qh2+ {[%emt 0:00:30]} Kg4 48. Qxb8 {[%emt 0:00:30]} Bf5 49. Qxb7 {[%emt 0:00:30]} Ng5 50. Qg2+ {[%emt 0:00:30]} Kf4 51. Qd2+ {[%emt 0:00:30]} Kg4 52. Kg2 {[%emt 0:00:30]} Be4+ 53. Kf2 {[%emt 0:00:30]} h5 54. Qd1+ {[%emt 0:00:30]} Kf4 55. Qd6+ {[%emt 0:00:30]} Kg4 56. Qg3+ {[%emt 0:00:30]} Kf5 57. Ke3 {[%emt 0:00:30]} Ne6 58. c5 {[%emt 0:00:30]} g5 59. Qh3+ {[%emt 0:00:30]} g4 60. Qxh5+ {[%emt 0:00:30]} Ng5 61. Qxg5+ {[%emt 0:00:30]} Kxg5 62. Kxe4 {[%emt 0:00:30]} 1-0

[Event "4NCL Div 1 2024-25"]
[Site "England"]
[Date "2024.11.23"]
[Round "1.9"]
[White "Erdos, Viktor"]
[Black "Larkin, Vladyslav"]
[Result "1-0"]
[Annotator "TA"]
[ECO "E49"]
[WhiteElo "2533"]
[BlackElo "2455"]
[PlyCount "109"]
[EventDate "2024.11.23"]
[EventType "team-tourn"]
[EventCountry "ENG"]
[SourceTitle "playchess.com"]
[Source "ChessBase"]
[SourceQuality "1"]
[TimeControl "40/6000+30:3000+30"]

{[%evp 44,109,371,304,288,285,276,288,361,253,279,256,294,300,287,270,664,668,600,532,842,402,391,383,399,393,351,343,346,332,346,343,411,407,397,402,422,423,420,398,413,383,462,466,860,791,1464,1596,6428,12791,10310,6041,5608,691,6664,6255,2126,1477,1452,1187,29979,29979,29979,29980,29985,29985,29987,29988]} 1. d4 {[%emt 0:10:09]} Nf6 {[%emt 0:10:13]} 2. c4 {[%emt 0:00:04]} e6 {[%emt 0:00:04]} 3. Nc3 {[%emt 0:00:05]} Bb4 {[%emt 0:00:13]} 4. e3 {[%emt 0:00:06]} O-O {[%emt 0:00:29]} 5. Bd3 {[%emt 0:00:08]} d5 {[%emt 0:00:25]} 6. a3 {[%emt 0:00:07]} Bxc3+ {[%emt 0:00:21]} 7. bxc3 {[%emt 0:00:05]} c5 {[%emt 0:00:02]} 8. cxd5 {[%emt 0:01:54]} exd5 {[%emt 0:00:10]} 9. Ne2 {[%emt 0:00:12]} Qc7 {[%emt 0:15:56]} 10. O-O {[%emt 0:01:18] E49: Nimzo-Indian: Rubinstein: 5 Bd3 d5 6 a3 Bxc3+ 7 bxc3.} b6 {[%emt 0:00:29]} 11. f3 {[%emt 0:01:39]} Re8 {[%emt 0:03:05]} 12. Ra2 {[%emt 0:17:26]} Ba6 {[%emt 0:01:43]} 13. Ng3 {[%emt 0:00:21]} cxd4 {[%emt 0:14:50]} 14. cxd4 {[%emt 0:01:35]} Qc3 {[%emt 0:00:05]} 15. Bxa6 {[%emt 0:08:00]} Nxa6 {[%emt 0:00:05]} 16. Rc2 $5 $146 {[%emt 0:00:18][%mdl 8] An interesting novelty.} ({Predecessor:} 16. Re2 Rad8 17. Bb2 Qc4 18. e4 dxe4 19. fxe4 Nc5 20. Rxf6 gxf6 21. Rc2 Qe6 22. Re2 {0-1 Abdukhakimov,A (2271)-Vasquez Schroder,R (2475) Titled Tuesday intern op 02nd Jul Early blitz 2024 (10)}) 16... Qb3 {[%emt 0:01:49]} 17. e4 {[%emt 0:04:38]} Nd7 {[%emt 0:02:11]} 18. Nf5 {[%emt 0:30:23]} f6 {[%emt 0:10:27]} 19. Ne7+ {[%emt 0:04:53]} Kh8 {[%emt 0:00:26]} 20. Nxd5 {[%emt 0:00:08]} f5 {[%emt 0:00:44]} 21. Bb2 {[%emt 0:15:21]} Rad8 {[%emt 0:02:14]} 22. Re2 {[%emt 0:00:31]} Qb5 {[%emt 0:00:30]} 23. Rfe1 {[%emt 0:00:47]} Nf8 {[%emt 0:04:51]} 24. a4 {[%emt 0:05:37]} (24. exf5 $2 Rxe2 (24... Rxd5 $2 25. Rxe8 Kg8 26. Qc2 $18) 25. Qxe2 Rxd5 26. Qxb5 Rxb5 $19) 24... Qd7 {[%emt 0:01:05]} 25. Qd3 {[%emt 0:02:13]} Nb8 {[%emt 0:00:51]} 26. Qb5 {[%emt 0:04:43]} (26. exf5 Rxe2 27. Qxe2 Qxd5 $17) 26... Qf7 {[%emt 0:00:05]} 27. h3 {[%emt 0:00:38]} Ng6 {[%emt 0:01:20]} 28. exf5 {[%emt 0:00:27]} Rxe2 {[%emt 0:00:11]} 29. Rxe2 {[%emt 0:00:07]} Nh4 $2 {[%emt 0:01:52]} (29... Qxf5 30. Nc7 Qxb5 31. axb5 Kg8) 30. Ne7 $18 {[%emt 0:00:36]} Nd7 {[%emt 0:01:14]} 31. Nc6 {[%emt 0:00:40]} Rf8 {[%emt 0:04:52]} 32. Ne5 {[%emt 0:00:48]} (32. Re7 $142 Qh5 33. Rxd7 Nxf5 34. Ne7 (34. Rxa7 Qg5 $18)) 32... Nxe5 $18 {[%emt 0:00:15]} 33. dxe5 {[%emt 0:00:04]} (33. Qxe5 Qxf5 34. d5 Qxe5 35. Bxe5 (35. Rxe5 Kg8 $18) 35... h6 $18) 33... Qxf5 {[%emt 0:01:12]} 34. e6 {[%emt 0:00:13]} Qxb5 {[%emt 0:07:59]} 35. axb5 {[%emt 0:00:02]} Kg8 {[%emt 0:00:06]} 36. Rd2 {[%emt 0:01:28]} Re8 {[%emt 0:00:43]} 37. Rd7 {[%emt 0:00:36]} Rxe6 {[%emt 0:00:05]} 38. Rxg7+ {[%emt 0:00:16]} (38. Bxg7 Rg6 39. Bd4 Nxf3+ 40. Kf2 Nxd4 41. Rxd4 Rg5 $16) 38... Kf8 {[%emt 0:00:02]} 39. Kf2 {[%emt 0:00:30]} (39. Rxa7 Re2 $18) (39. Rxh7 Nxg2 40. Kf2 (40. Rh8+ Kf7 $16) 40... Ne3 $18) 39... Ng6 {[%emt 0:12:25]} 40. Rxh7 {[%emt 0:00:14]} (40. Rxa7 Nf4 41. Kg3 (41. Rxh7 Nd3+ 42. Kg3 Nxb2 $11) 41... Nd3 $18) 40... Nf4 {[%emt 0:00:04]} 41. Ba3+ {[%emt 0:50:14]} (41. Rxa7 Nd3+ 42. Kg3 Nxb2 $11) 41... Kg8 {[%emt 0:50:17]} 42. Rxa7 {[%emt 0:00:00]} Re2+ {[%emt 0:00:00]} 43. Kg3 {[%emt 0:00:00]} Nxg2 {[%emt 0:00:00]} (43... Nd5 $142 44. Bc1 Nc3 45. Ra8+ Kf7) 44. f4 $18 {[%emt 0:00:00]} (44. Rb7 Ne3 45. Kf4 (45. Rxb6 Rg2+ 46. Kh4 Nf5+ 47. Kh5 Ng7+ 48. Kh4 Nf5+ 49. Kh5 Ng7+ 50. Kh6 Nf5+ 51. Kh5 $11) 45... Nd5+ 46. Kf5 Ne3+ 47. Ke4 Nf1+ 48. Kf4 Ne3 $18) 44... Ra2 {[%emt 0:00:00]} 45. f5 {[%emt 0:00:00]} Ne3 {[%emt 0:00:00]} 46. f6 {[%emt 0:00:00]} Nf5+ {[%emt 0:00:00]} 47. Kf4 {[%emt 0:00:00]} Nh6 {[%emt 0:00:00]} 48. Rg7+ {[%emt 0:01:07]} Kh8 {[%emt 0:00:00]} 49. Be7 {[%emt 0:02:35]} Rf2+ {[%emt 0:00:00]} 50. Ke4 {[%emt 0:00:36]} Ng8 {[%emt 0:00:00]} 51. Kd5 {[%emt 0:01:06]} Rf5+ {[%emt 0:00:00]} 52. Ke6 {[%emt 0:00:44]} Rf3 {[%emt 0:00:00]} 53. Rg5 {[%emt 0:00:14]} Nh6 {[%emt 0:00:00]} 54. Rh5 {[%emt 0:00:11]} Re3+ {[%emt 0:00:00]} 55. Kd7 {[%emt 0:00:13]} 1-0

[Event "4NCL Div 1 2024-25"]
[Site "England"]
[Date "2024.11.23"]
[Round "1.10"]
[White "Jogstad, Martin"]
[Black "Royal, Shreyas"]
[Result "0-1"]
[Annotator "TA"]
[ECO "A09"]
[WhiteElo "2379"]
[BlackElo "2520"]
[PlyCount "80"]
[EventDate "2024.11.23"]
[EventType "team-tourn"]
[EventCountry "ENG"]
[SourceTitle "playchess.com"]
[Source "ChessBase"]
[SourceQuality "1"]
[TimeControl "40/6000+30:3000+30"]

{[%evp 11,79,5,23,0,33,-5,6,4,0,-40,-27,-26,-21,-28,-34,-31,-36,-50,-29,-30,0,-21,0,-51,-25,-16,-31,-19,-23,-57,-37,-56,-46,-45,-38,-46,-34,-127,-134,-142,-129,-139,-132,-213,-207,-213,-214,-208,-197,-222,-218,-222,-187,-214,-196,-537,-554,-529,-540,-574,-575,-692,-668,-683,-680,-29979,-29980,-29998,-29999,-29999]} 1. c4 {[%emt 0:10:07]} Nf6 {[%emt 0:10:34]} 2. g3 {[%emt 0:00:14]} e6 {[%emt 0:00:44]} 3. Bg2 {[%emt 0:00:18]} d5 {[%emt 0:00:06]} 4. Nf3 {[%emt 0:00:07]} d4 {[%emt 0:00:39]} 5. d3 {[%emt 0:00:28]} c5 {[%emt 0:02:28]} 6. O-O {[%emt 0:00:10]} Nc6 {[%emt 0:00:05]} 7. e3 {[%emt 0:00:20]} h6 {[%emt 0:01:22]} 8. Re1 {[%emt 0:00:59]} Bd6 $1 {[%emt 0:01:55]} 9. Na3 {[%emt 0:03:40] The position is equal.} O-O {[%emt 0:00:53]} 10. Nb5 {[%emt 0:09:14]} Bb8 {[%emt 0:05:34]} 11. exd4 {[%emt 0:02:51]} cxd4 {[%emt 0:00:36]} 12. c5 {[%emt 0:03:24]} e5 {[%emt 0:07:21]} 13. Nd2 {[%emt 0:13:00]} a6 {[%emt 0:01:39]} 14. Na3 {[%emt 0:12:16]} Bc7 {[%emt 0:03:38]} 15. Nac4 {[%emt 0:02:55]} Re8 {[%emt 0:00:11]} 16. a3 {[%emt 0:06:33]} Be6 {[%emt 0:06:17]} 17. Qc2 {[%emt 0:01:04]} ({White should play} 17. b4 $11) 17... Bd5 {[%emt 0:00:29]} 18. Ne4 {[%emt 0:01:54]} Nxe4 {[%emt 0:01:58]} 19. Bxe4 {[%emt 0:00:10]} Bxe4 {[%emt 0:10:53]} 20. Rxe4 {[%emt 0:00:43]} Qd5 {[%emt 0:04:40]} 21. Nd2 {[%emt 0:05:50]} f5 {[%emt 0:01:27]} 22. Re1 {[%emt 0:00:56] [#]} e4 $1 {[%emt 0:11:20]} 23. dxe4 {[%emt 0:05:22]} d3 {[%emt 0:01:13]} 24. Qc4 {[%emt 0:03:30] White is now going downhill.} ({White should try} 24. Kf1 $15 Rxe4 (24... fxe4 25. Qb3 $11) 25. Qb3 Rxe1+ 26. Kxe1 Re8+ 27. Kf1 Qxb3 28. Nxb3) 24... Qxc4 $17 {[%emt 0:00:10]} 25. Nxc4 {[%emt 0:00:07] [#]} Nd4 $1 {[%emt 0:01:10]} (25... fxe4 26. Be3 $17) (25... Rxe4 26. Rxe4 fxe4 27. Be3 $11) 26. Rd1 {[%emt 0:00:55]} Rxe4 {[%emt 0:01:41] Black is more active.} 27. Ne3 {[%emt 0:07:31]} (27. Rxd3 $2 Nc2 28. Rb1 Rxc4 $19) (27. Nd2 $17 {is a better defense.}) 27... Nb3 {[%emt 0:00:58]} 28. Rb1 {[%emt 0:00:19] [#]} Rd8 {[%emt 0:00:17] ...d2 is the strong threat.} (28... Nxc5 29. b4 Ne6 30. Rb3 $16) 29. Bd2 {[%emt 0:00:44]} f4 {[%emt 0:00:54]} ({Don't play} 29... Nxc5 30. Rbc1 Ne6 31. Nxf5 $17) 30. gxf4 {[%emt 0:00:48]} Bxf4 {[%emt 0:01:14][%cal Ob3d2] aiming for ...Nxd2!} ({Less strong is} 30... Nxc5 31. Rbc1 Bd6 32. Ba5 $15) 31. Nf1 {[%emt 0:01:30]} Nxc5 {[%emt 0:06:20]} 32. Rbc1 {[%emt 0:02:22]} Ne6 {[%emt 0:03:12]} 33. f3 $2 {[%emt 0:09:33]} (33. Ng3 {is more resistant.} Re5 34. Kg2) 33... Re2 $19 {[%emt 0:00:37] White is weak on the dark squares} 34. Kh1 {[%emt 0:05:18]} Bxd2 {[%emt 0:02:16]} 35. Rxd2 {[%emt 0:00:41]} Nf4 {[%emt 0:00:35]} 36. Rc4 {[%emt 0:01:50]} g5 {[%emt 0:00:04] And now ...Rde8 would win.} 37. Re4 {[%emt 0:00:19]} Rc8 {[%emt 0:00:27] ( -> ...Rc1)} 38. h4 {[%emt 0:00:56]} Rc1 {[%emt 0:00:23][%cal Rc1f1] Black mates.} 39. Kg1 {[%emt 0:00:19]} Nh3+ {[%emt 0:00:06]} 40. Kh1 {[%emt 0:00:04]} Rxf1# {[%emt 0:00:38] Weighted Error Value: White=0.52/Black=0.06 (flawless) .  Mistake:       	White=4     	---        Inaccurate:     	White=3     	Black=3      OK:         	White=11    	Black=14     Best:        	White=1     	Black=2      Strong:       	---       	Black=2} 0-1

[Event "4NCL Div 1 2024-25"]
[Site "England"]
[Date "2024.11.23"]
[Round "1.11"]
[White "Csonka, Balazs"]
[Black "Maycock Bates, David Henry"]
[Result "1-0"]
[Annotator "TA"]
[ECO "E04"]
[WhiteElo "2473"]
[BlackElo "2290"]
[PlyCount "71"]
[EventDate "2024.11.23"]
[EventType "team-tourn"]
[EventCountry "ENG"]
[SourceTitle "playchess.com"]
[Source "ChessBase"]
[SourceQuality "1"]
[TimeControl "40/6000+30:3000+30"]

{[%evp 10,71,29,0,10,21,25,18,11,12,10,15,15,3,2,9,21,25,2,16,22,41,49,44,39,24,42,41,45,45,133,118,131,134,118,116,118,125,163,167,159,160,164,167,399,399,403,392,439,427,477,457,507,507,719,751,775,743,776,754,756,771,763,738]} 1. d4 {[%emt 0:10:03]} Nf6 {[%emt 0:11:03]} 2. c4 {[%emt 0:00:11]} e6 {[%emt 0:00:05]} 3. Nf3 {[%emt 0:00:17]} d5 {[%emt 0:00:11]} 4. g3 {[%emt 0:00:17]} dxc4 {[%emt 0:00:15]} 5. Bg2 {[%emt 0:00:08]} a6 {[%emt 0:00:31]} 6. Ne5 {[%emt 0:00:26][%cal Oe1g1]} Bb4+ {[%emt 0:09:36]} 7. Nc3 {[%emt 0:00:13] Qa4+ would now be deadly.} Nd5 {[%emt 0:15:56]} 8. O-O {[%emt 0:01:34] Threatens to win with Nxd5.} Nxc3 {[%emt 0:00:11] The position is equal.} 9. bxc3 {[%emt 0:00:07]} Bxc3 {[%emt 0:00:05]} 10. Rb1 {[%emt 0:00:06][%cal Oc1a3]} Qxd4 {[%emt 0:02:26]} 11. Qa4+ {[%emt 0:00:18]} b5 {[%emt 0:00:06]} 12. Qa3 {[%emt 0:00:16]} Qxe5 {[%emt 0:27:42]} 13. Bf4 {[%emt 0:00:11]} Qf6 {[%emt 0:01:02]} (13... Qxe2 $2 14. Qxc3 (14. Bxa8 Bf6 $14) 14... O-O 15. Bxa8 $18) 14. Bxc7 $1 {[%emt 0:00:10]} (14. Bxa8 e5 15. Qxc3 exf4 $17) 14... b4 {[%emt 0:00:56]} 15. Qa5 {[%emt 0:00:55]} O-O {[%emt 0:09:44]} 16. Bxa8 {[%emt 0:00:16]} e5 $1 {[%emt 0:00:59]} 17. Qc5 {[%emt 0:01:36][%cal Oc5c4] Repels Nc6} (17. Qd5 $5) 17... Bf5 {[%emt 0:13:34] And now ...Nd7 would win.} 18. Qxc4 $1 {[%emt 0:00:43]} Bxb1 {[%emt 0:06:45]} 19. Rxb1 {[%emt 0:00:03][%cal Oa2a3]} a5 {[%emt 0:00:55] White stays focused until the end.} 20. Bxa5 $16 {[%emt 0:28:07] White has more active pieces.} Qa6 {[%emt 0:01:49] Prevents Bb7} 21. Qxa6 {[%emt 0:02:17]} Nxa6 {[%emt 0:00:02]} 22. Bb7 {[%emt 0:00:39]} Nc5 {[%emt 0:01:22]} 23. Bd5 {[%emt 0:00:16][%cal Oa2a3]} ({Much weaker is} 23. Bxb4 $6 Bxb4 24. Rxb4 Rb8 $11) 23... g6 {[%emt 0:05:32] [#]} 24. a3 $1 {[%emt 0:16:00][%mdl 512]} Rb8 {[%emt 0:00:01]} 25. axb4 {[%emt 0:01:13] Hoping for Rc1.} ({Reject} 25. Bxb4 $6 Na6 $11) 25... Na6 {[%emt 0:00:22] [#]} 26. Bc4 $1 {[%emt 0:01:01]} Nxb4 {[%emt 0:00:09]} (26... Nc5 27. Rc1 Na4) 27. Rb3 $18 {[%emt 0:00:19]} Bd2 {[%emt 0:01:24]} 28. Kf1 {[%emt 0:01:49]} h5 {[%emt 0:01:14]} 29. e3 {[%emt 0:00:59] White is clearly winning.} h4 {[%emt 0:00:02]} 30. gxh4 {[%emt 0:02:50]} Kg7 {[%emt 0:00:19]} 31. Ke2 {[%emt 0:00:07]} Rh8 {[%emt 0:01:10]} 32. Kxd2 {[%emt 0:00:22]} Nc6 {[%emt 0:00:05]} 33. Bc3 {[%emt 0:00:11]} Rxh4 {[%emt 0:00:05]} 34. Bd5 {[%emt 0:00:15]} Ne7 {[%emt 0:00:17]} 35. Bxe5+ {[%emt 0:00:47]} f6 {[%emt 0:00:20]} 36. Bg3 {[%emt 0:00:16] Weighted Error Value: White=0.02 (flawless) /Black=0.24 (precise) .  Mistake:       	---       	Black=2      Inaccurate:     	---       	Black=2      OK:         	White=16    	Black=9      Best:        	White=3     	Black=2      Strong:       	White=3     	Black=1} 1-0

[Event "4NCL Div 1 2024-25"]
[Site "England"]
[Date "2024.11.23"]
[Round "1.12"]
[White "Large, Peter G"]
[Black "Jaracz, Pawel"]
[Result "1/2-1/2"]
[Annotator "TA"]
[ECO "B35"]
[WhiteElo "2303"]
[BlackElo "2473"]
[PlyCount "46"]
[EventDate "2024.11.23"]
[EventType "team-tourn"]
[EventCountry "ENG"]
[SourceTitle "playchess.com"]
[Source "ChessBase"]
[SourceQuality "1"]
[TimeControl "40/6000+30:3000+30"]

{[%evp 23,46,24,39,0,0,0,0,0,0,0,18,15,23,12,10,10,11,9,10,11,14,0,10,0,0]} 1. e4 {[%emt 0:10:36]} c5 {[%emt 0:10:12]} 2. Nc3 {[%emt 0:00:08]} Nc6 {[%emt 0:00:25]} 3. Nf3 {[%emt 0:01:58]} g6 {[%emt 0:02:21]} 4. d4 {[%emt 0:00:36]} cxd4 {[%emt 0:00:04]} 5. Nxd4 {[%emt 0:00:06]} Bg7 {[%emt 0:00:03]} 6. Be3 {[%emt 0:00:14]} Nf6 {[%emt 0:00:07]} 7. Bc4 {[%emt 0:00:28]} Qa5 {[%emt 0:00:26]} 8. O-O {[%emt 0:01:05]} O-O {[%emt 0:00:34]} 9. Bb3 {[%emt 0:00:25]} d6 {[%emt 0:00:25]} 10. h3 {[%emt 0:00:08]} Bd7 {[%emt 0:00:57]} 11. f4 {[%emt 0:03:07]} Rac8 {[%emt 0:05:52]} 12. Qf3 {[%emt 0:14:23]} Qh5 {[%emt 0:07:01]} 13. Rad1 {[%emt 0:11:07]} Nxd4 {[%emt 0:20:53]} 14. Bxd4 {[%emt 0:00:27]} Qxf3 {[%emt 0:01:12]} 15. Rxf3 {[%emt 0:00:12][%cal Oe4e5] [#] Threatens to win with e5!} Bc6 {[%emt 0:00:15]} 16. Nd5 Bxd5 {[%emt 0:04:01]} 17. exd5 {[%emt 0:04:49]} a6 {[%emt 0:15:28]} 18. Re3 {[%emt 0:05:28]} Rfe8 {[%emt 0:00:26] The position is equal.} 19. c3 {[%emt 0:13:46]} Nd7 {[%emt 0:01:49]} 20. g4 {[%emt 0:01:02]} Bxd4 {[%emt 0:06:40]} 21. Rxd4 {[%emt 0:01:09]} b5 {[%emt 0:00:07]} 22. g5 {[%emt 0:00:38]} Nb6 {[%emt 0:02:31]} 23. h4 {[%emt 0:03:44]} a5 {[%emt 0:01:36] A rather calm draw.   Weighted Error Value: White=0.09 (flawless) /Black=0.06 (flawless) .  OK:         	White=1     	Black=6      Best:        	---       	Black=1} 1/2-1/2

[Event "4NCL Div 1 2024-25"]
[Site "England"]
[Date "2024.11.23"]
[Round "1.13"]
[White "Grieve, Harry"]
[Black "Jarocka, Liwia"]
[Result "1-0"]
[Annotator "TA"]
[ECO "B15"]
[WhiteElo "2464"]
[BlackElo "2267"]
[PlyCount "77"]
[EventDate "2024.11.23"]
[EventType "team-tourn"]
[EventCountry "ENG"]
[SourceTitle "playchess.com"]
[Source "ChessBase"]
[SourceQuality "1"]
[TimeControl "40/6000+30:3000+30"]

{[%evp 14,77,39,39,26,29,47,36,43,24,37,25,24,13,10,22,18,19,14,26,39,38,130,52,146,140,141,147,153,153,154,137,179,172,222,192,258,219,223,236,446,430,566,552,747,654,771,640,832,822,862,858,835,800,966,941,833,885,958,935,843,747,1005,887,4810,4294]} 1. e4 {[%emt 0:10:02]} c6 {[%emt 0:10:14]} 2. d4 {[%emt 0:00:04]} d5 {[%emt 0:00:04]} 3. Nd2 {[%emt 0:00:04]} dxe4 {[%emt 0:00:06]} 4. Nxe4 {[%emt 0:00:03]} Nf6 {[%emt 0:00:07]} 5. Nxf6+ {[%emt 0:00:04]} exf6 {[%emt 0:00:05]} 6. c3 {[%emt 0:00:03]} Bd6 {[%emt 0:00:10]} 7. Bd3 {[%emt 0:00:06]} O-O {[%emt 0:00:16]} 8. Qc2 {[%emt 0:00:04] Active counter play!} Re8+ {[%emt 0:00:05]} 9. Ne2 {[%emt 0:00:04]} h5 {[%emt 0:00:23][%cal Bh7h5,Bh5h4][%mdl 32]} 10. O-O {[%emt 0:00:11]} h4 {[%emt 0:00:39] White is slightly better.} 11. h3 {[%emt 0:00:05]} Bc7 {[%emt 0:02:36]} 12. Bd2 {[%emt 0:04:30]} Nd7 {[%emt 0:00:53]} 13. Rae1 {[%emt 0:01:04]} Nf8 {[%emt 0:00:08]} 14. f4 {[%emt 0:00:09][%cal Bf2f4,Bf4f5][%mdl 32]} g6 {[%emt 0:00:43][%cal Bg7g6,Bg6g5][%mdl 32]} 15. f5 {[%emt 0:00:11]} g5 {[%emt 0:00:06]} 16. c4 {[%emt 0:00:05][%cal Bc3c4,Bc4c5][%mdl 32]} Qd6 {[%emt 0:16:52]} 17. c5 $36 {[%emt 0:00:07][%mdl 2048] White has some pressure.} Qh2+ {[%emt 0:01:22] White stays focused until the end.} 18. Kf2 {[%emt 0:00:02][%cal Bg1f2,Bf2e2,Be2d1][%mdl 32] And now Rh1 would win.} Rxe2+ {[%emt 0:01:59]} 19. Kxe2 $16 {[%emt 0:00:12]} Bg3 {[%emt 0:00:45] [#]} 20. Kd1 $1 {[%emt 0:13:17]} Bxe1 {[%emt 0:09:52]} 21. Bxe1 {[%emt 0:00:06]} ({Worse is} 21. Rxe1 Qxg2 22. Re7 Qf3+ (22... Qxh3 23. Qb3 $17) 23. Kc1 Qxh3 $17) 21... Bd7 {[%emt 0:01:43][%cal Bc8d7,Bd7e8,Be8d7][%mdl 32]} 22. Bc3 {[%emt 0:10:14][%cal Od4d5]} Be8 {[%emt 0:04:48]} 23. Qe2 {[%emt 0:05:36]} Qc7 {[%emt 0:08:51]} (23... Nh7 $142 24. Kc1 Nf8) 24. Rf3 $18 {[%emt 0:07:49][%cal Og2g3]} b6 {[%emt 0:49:43]} (24... Bd7 {was worth a try.} 25. d5 cxd5) 25. b4 {[%emt 0:05:40]} Bd7 {[%emt 0:00:00]} 26. Qe7 {[%emt 0:08:22]} Nh7 $2 {[%emt 0:00:00]} (26... Qd8 27. Re3 Be8) 27. Bc4 {[%emt 0:01:53] White is clearly winning.} Rf8 {[%emt 0:00:00] [#]} 28. Be6 $1 {[%emt 0:08:46][%mdl 512]} fxe6 {[%emt 0:00:00]} (28... Qh2 29. Bxd7) 29. fxe6 {[%emt 0:00:04]} Qd8 {[%emt 0:00:00]} 30. Qxd7 {[%emt 0:00:39]} Qxd7 {[%emt 0:00:00]} 31. exd7 {[%emt 0:00:02][%mdl 4096] Endgame. KRB-KRN} Rd8 {[%emt 0:00:00] [#]} 32. b5 $1 {[%emt 0:00:56][%cal Bb4b5,Bb5c6][%mdl 544]} Rxd7 {[%emt 0:00:00]} 33. bxc6 {[%emt 0:00:07]} Rd8 {[%emt 0:00:00]} 34. cxb6 {[%emt 0:06:49]} axb6 {[%emt 0:00:00]} 35. Rd3 {[%emt 0:00:17] d5 is the strong threat.} Nf8 {[%emt 0:00:00]} 36. d5 {[%emt 0:00:19][%cal Bd4d5,Bd5d6][%mdl 32] Strongly threatening d6!} Kf7 {[%emt 0:00:00]} 37. Kc2 {[%emt 0:01:21]} Rc8 {[%emt 0:00:00]} 38. Kb3 {[%emt 0:00:51]} Ng6 {[%emt 0:00:00]} 39. d6 {[%emt 0:01:35] Weighted Error Value: White=0.06 (flawless) /Black=0.40.  Mistake:       	---       	Black=4      Inaccurate:     	White=1     	Black=3      OK:         	White=6     	Black=5      Best:        	White=1     	Black=2      Brilliant:      	White=1     	---} 1-0